Cogmind - Beta 9.3 @@@ ROGUE MODE // 2019.12.21 @ 22:39:02 // Winter2019/RPGLIKE Player: Klokinator Result: Smashed by cave-in Performance ------------- Evolutions (0) 0 Regions Visited (2) 400 Robots Destroyed (44) 220 Value Destroyed (1009) 1009 Prototype IDs (3) 60 Alien Tech Used (0) 0 Bonus (0) 0 TOTAL SCORE: 1689 Bonus ------- None Cogmind --------- Core Integrity 0/600 Matter 209/300 Energy 248/250 System Corruption 3% Temperature Cool (21) Movement Rolling (110) Ox1 Location -10/Mines Parts ------- > --- POWER (1) -------- Ion Engine > --- PROPULSION (4) --- Compact Wheel > --- UTILITY (1) ------ Weight Redist. System > --- WEAPON (3) ------- Improved Light Cannon Improved Light Cannon Improved Light Cannon > --- INVENTORY (1) ---- Mining Claw Peak State ------------ > --- POWER ------------ Ion Engine > --- PROPULSION ------- Hover Unit Hover Unit > --- UTILITY ---------- Weight Redist. System > --- WEAPON ----------- Improved Light Cannon Improved Light Cannon Improved Light Cannon > --- INVENTORY -------- Mining Claw [Rating: 11] Favorites ----------- Power Ion Engine Engine Ion Engine Propulsion Hover Unit Wheel Compact Wheel Hover Unit Hover Unit Flight Unit Flight Unit Utility Weight Redist. System Device Weight Redist. System Weapon Improved Light Cannon Energy Cannon Particle Cannon Ballistic Gun Assault Rifle Ballistic Cannon Improved Light Cannon Slashing Weapon Mining Claw Build | -11 -10 -10 ------- Run | Scr Mat Min Slots Evolved 5 | 3 2 . Power . | . . . Propulsion 3 | 3 . . Utility . | . . . Weapon 2 | . 2 . Parts Attached 17 | 2 13 2 Power 2 | 1 1 . Engine 2 | 1 1 . Core . | . . . Reactor . | . . . Propulsion 5 | . 3 2 Treads . | . . . Leg . | . . . Wheel 2 | . . 2 Hover 2 | . 2 . Flight 1 | . 1 . Utility 2 | . 2 . Device 2 | . 2 . Storage . | . . . Processor . | . . . Hackware . | . . . Protection . | . . . Artifact . | . . . Weapon 8 | 1 7 . Energy Gun . | . . . Energy Cannon 1 | . 1 . Ballistic Gun 2 | 1 1 . Ballistic Cannon 3 | . 3 . Launcher . | . . . Special Weapon . | . . . Impact Weapon . | . . . Slashing Weapon 2 | . 2 . Piercing Weapon . | . . . Special Melee Weapon . | . . . Unidentified Prototypes . | . . . Parts Lost 1 | . . 1 Power . | . . . Propulsion 1 | . . 1 Utility . | . . . Weapon . | . . . Highest Loss Streak 1 | . . 1 Average Slot Usage (%) 57 | . 51 76 Engine 9 | . 9 11 Wheel 2 | . . 10 Hover 13 | . 14 11 Device 6 | . 5 11 Energy Cannon 2 | . 2 . Ballistic Cannon 18 | . 14 33 Slashing Weapon 3 | . 4 . Naked Turns . | . . . Heaviest Build 18 | 5 18 17 Greatest Support 32 | 3 18 32 Greatest Overweight (x) 5 | 1 1 5 Average Overweight (x) . | . . . Largest Inventory Capacity 1 | 1 1 1 Average Capacity 1 | 1 1 1 Most Carried 1 | 1 1 1 Average Carried . | . . 1 Final Capacity 1 | 1 1 1 Final Carried 1 | 1 1 1 Class Distribution -------------------- 54% | Gunner 45% | Mutant Dominant Class ---------------- Mutant | -10/Materials Gunner | -10/Mines Resources | -11 -10 -10 ----------- Run | Scr Mat Min Matter Collected 1041 | 213 456 372 Remotely . | . . . Salvage Created 1430 | 100 831 499 Parts 66 | 2 54 10 Haulers Intercepted 1 | . 1 . Recyclers Shooed 2 | . . 2 Parts Field Recycled . | . . . Retrieved Matter . | . . . Parts Self-Destructed . | . . . Prevented . | . . . Kills | -11 -10 -10 ------- Run | Scr Mat Min Combat Hostiles Destroyed 25 | . 21 4 Melee 4 | . 4 . Cannons 21 | . 17 4 Classes Destroyed 8 | 1 7 . Worker 2 | . 2 . Builder 1 | . 1 . Hauler 1 | . 1 . Recycler 10 | 1 3 6 Operator 2 | . 2 . Watcher 3 | . 3 . Swarmer 3 | . 3 . Grunt 22 | . 18 4 Best Kill Streak 5 | 1 5 4 Combat Bots Only 3 | . 3 2 Max Kills in Single Turn 1 | 1 1 1 Gunslinging . | . . . Exploded . | . . . Melee 1 | . 1 . Uniques/NPCs Destroyed . | . . . Combat | -11 -10 -10 -------- Run | Scr Mat Min Damage Taken 1394 | . 781 613 Core 1179 | . 672 507 Absorbed by Shields . | . . . Redirected to Core 766 | . 368 398 Core Remaining (%) 100 | 100 . . Volleys Fired 113 | 7 76 30 Largest 3 | 1 3 3 Hottest 117 | 20 117 117 Shots Fired 235 | 7 139 89 Gun 11 | 7 4 . Cannon 224 | . 135 89 Launcher . | . . . Special . | . . . Kinetic 197 | 7 101 89 Thermal 38 | . 38 . Explosive . | . . . Electromagnetic . | . . . Robot Hit Streak 13 | 3 9 13 Robot Miss Streak 6 | 1 6 3 Penetration Max . | . . . Secondary Targets . | . . . Shots Hit Robots 139 | 5 97 37 Core Hits 50 | 2 36 12 Critical Hits . | . . . Critical Kills . | . . . Critical Parts Destroyed . | . . . Melee Attacks 20 | . 20 . Impact . | . . . Slashing 20 | . 20 . Piercing . | . . . Sneak Attacks 2 | . 2 . Combat Hostiles . | . . . Follow-up Attacks . | . . . Damage Inflicted 2756 | 61 2078 617 Guns 112 | 61 51 . Cannons 2257 | . 1640 617 Explosions . | . . . Melee 385 | . 385 . Ramming 2 | . 2 . Kinetic 1737 | 61 1059 617 Thermal 632 | . 632 . Explosive . | . . . Electromagnetic . | . . . Impact . | . . . Slashing 385 | . 385 . Piercing . | . . . Highest Corruption 2 | . 2 2 Average Corruption 1 | . 1 2 Corruption Purged . | . . . Effects 14 | . 4 10 Message Errors 2 | . . 2 Heat Flow Errors 1 | . . 1 Energy Discharges 2 | . 1 1 Targeting Errors 7 | . 2 5 Weapon Failures 2 | . 1 1 Overload Shots . | . . . Overflow Damage 41 | . 20 21 Projectiles 41 | . 20 21 Explosions . | . . . Melee . | . . . Knockbacks 12 | . 9 3 Impact . | . . . Kinetic 11 | . 9 2 Secondary 1 | . . 1 Self-Inflicted Damage 1 | . 1 . Shots . | . . . Rammed 2 | . 2 . Targets Rammed 2 | . 2 . Kicked . | . . . Crushed . | . . . Highest Temperature 526 | . 526 458 Average Temperature 138 | . 127 162 Received Heat Transfer 354 | . 294 60 Effects 16 | . 8 8 Shutdowns 5 | . 3 2 Energy Bleed 3 | . 3 . Interference 3 | . 1 2 Matter Decay 3 | . . 3 Short Circuit 1 | . . 1 Damage (minor) 1 | . 1 . Siege Activations . | . . . Robots Corrupted . | . . . Combat Hostiles . | . . . Parts Fried . | . . . Impact Corruptions . | . . . Robots Melted . | . . . Combat Hostiles . | . . . Parts Melted 2 | . 2 . Heat Transferred 1147 | . 1147 . Parts Sabotaged . | . . . Parts Stolen . | . . . Parts Stripped . | . . . Power Chain Reactions . | . . . Missiles Intercepted . | . . . Alert | -11 -10 -10 ------- Run | Scr Mat Min Peak Influence 420 | 5 420 267 Average Influence 205 | 2 209 225 Maximum Alert Level 2 | . 2 1 Low Security (%) 46 | 100 49 28 Level 1 50 | . 46 71 Level 2 3 | . 4 . Level 3 . | . . . Level 4 . | . . . Level 5 . | . . . High Security . | . . . Max Security . | . . . Squads Dispatched 7 | . 7 . Investigation 5 | . 5 . Extermination . | . . . Reinforcement 2 | . 2 . Assault . | . . . Garrison . | . . . Intercept . | . . . Construction Impeded . | . . . Haulers Reinforced . | . . . Stealth | -11 -10 -10 --------- Run | Scr Mat Min Distress Signals 1 | . 1 . Communications Jammed . | . . . Distress Signals . | . . . Times Spotted 38 | . 34 4 Peak Tracking Total 4 | . 4 2 Tactical Retreats 1 | . 1 . Traps | -11 -10 -10 ------- Run | Scr Mat Min Traps Triggered 4 | . 4 . Indirectly . | . . . Trap Hack Attempts . | . . . Triggered . | . . . Disarmed . | . . . Reprogrammed . | . . . Reused . | . . . Traps Extracted . | . . . Installed . | . . . Triggered . | . . . Machines | -11 -10 -10 ---------- Run | Scr Mat Min Machines Disabled 3 | . 2 1 Max in Single Turn 1 | . 1 1 Machines Sabotaged . | . . . Garrisons Compromised . | . . . Overloaded Fab Kills . | . . . Fab Network Shutdowns . | . . . Hacking | -11 -10 -10 --------- Run | Scr Mat Min Machines Accessed 5 | . 5 . Terminals 5 | . 5 . Fabricators . | . . . Repair Stations . | . . . Recycling Units . | . . . Scanalyzers . | . . . Garrison Access . | . . . Total Hacks 17 | . 17 . Successful 9 | . 9 . Failed 8 | . 8 . Catastrophic . | . . . Database Lockouts . | . . . Manual 14 | . 14 . Terminals 17 | . 17 . Fabricators . | . . . Repair Stations . | . . . Recycling Units . | . . . Scanalyzers . | . . . Garrison Access . | . . . Terminal Hacks 4 | . 4 . Prototype ID Bank 2 | . 2 . Branch Access Points 1 | . 1 . Locate Traps 1 | . 1 . Fabricator Hacks . | . . . Repair Station Hacks . | . . . Recycling Unit Hacks . | . . . Scanalyzer . | . . . Garrison Access Hacks . | . . . Unauthorized Hacks 12 | . 12 . Terminals 5 | . 5 . Botnet 5 | . 5 . Fabricators . | . . . Repair Stations . | . . . Recycling Units . | . . . Scanalyzers . | . . . Garrison Access . | . . . Data Cores Recovered . | . . . Used . | . . . Hacking Detections 5 | . 5 . Full Trace Events 4 | . 4 . Feedback Events 1 | . 1 . Corruption 1 | . 1 . Feedback Blocked . | . . . Robot Schematics Acquired . | . . . Robots Built . | . . . Matter . | . . . Time . | . . . Total Robot Build Rating . | . . . Part Schematics Acquired . | . . . Parts Built . | . . . Matter . | . . . Time . | . . . Total Part Build Rating . | . . . Parts Repaired . | . . . Time . | . . . Parts Recycled . | . . . Recycled Matter . | . . . Retrieved Matter . | . . . Retrieved Components . | . . . Parts Scanalyzed . | . . . Part Schematics Acquired . | . . . Parts Damaged . | . . . Bothacking | -11 -10 -10 ------------ Run | Scr Mat Min Used RIF Installer . | . . . Robots Hacked . | . . . Non-combat . | . . . Combat . | . . . Robot Hacks Applied . | . . . Relay Couplers Released . | . . . Robots Rewired . | . . . Allies Hacked . | . . . Hacks Repelled . | . . . Allies | -11 -10 -10 -------- Run | Scr Mat Min Total Allies . | . . . Largest Group . | . . . Highest-Rated Group . | . . . Highest-Rated Ally . | . . . Total Orders . | . . . Ally Attacks . | . . . Total Damage . | . . . Kills . | . . . Allies Corrupted . | . . . Allies Melted . | . . . Intel | -11 -10 -10 ------- Run | Scr Mat Min Robot Analysis Total . | . . . Derelict Logs Recovered 1 | . . 1 Drone Launches . | . . . Drone Recoveries . | . . . Exploration | -11 -10 -10 ------------- Run | Scr Mat Min Turns Passed 1718 | 60 1276 382 Spaces Moved 1321 | 39 1063 219 Core 401 | 39 361 1 Treads . | . . . Legs . | . . . Wheels 152 | . . 152 Hover 746 | . 680 66 Flight 22 | . 22 . Fastest Speed 40 | 50 40 56 Average Speed 71 | 88 64 104 Slowest Speed 300 | 100 116 300 Overloaded Moves . | . . . Propulsion Burnouts . | . . . Robots Hopped . | . . . Cave-ins Triggered 2 | . . 2 Exploration Rate (%) 47 | 3 96 44 Regions Visited 2 Branch Regions 1 Pre-discovered Areas 1 | . . 1 Known Exits Taken 1 | . 1 . Unknown Exits Taken 1 | 1 . . Scrap Searched . | . . . Spaces Dug 15 | . 1 14 Terrain Destroyed 30 | . 11 19 Melee . | . . . Projectile 30 | . 11 19 AOE . | . . . Actions | -11 -10 -10 --------- Run | Scr Mat Min Total 1857 | 57 1495 305 Wait 345 | 8 284 53 Move 1318 | 38 1062 218 Hop . | . . . Pick Up 4 | 2 2 . Fast Attach 13 | 1 10 2 Attach 1 | 1 . . Detach . | . . . Swap 3 | . 3 . Drop 9 | . 7 2 Fire 113 | 7 76 30 Melee 20 | . 20 . Ram 2 | . 2 . Kick . | . . . Crush . | . . . Escape Stasis . | . . . Rewire . | . . . Trap . | . . . Miscellaneous 29 | . 29 . Route ------- -11/Scrapyard -10/Materials (discovered 5 exits: [*Mat x3] / *Min x2) -10/Mines (discovered 1 exit: [*Mat]) History --------- Turn | Location | Event 1 | -11/Scrapyard | Upgraded with Propulsion slot (x3) 5 | -11/Scrapyard | Discovered new exit (range 15) 61 | -11/Scrapyard | Entered Materials 209 | -10/Materials | Discovered new exit (range 13) 315 | -10/Materials | Build established: Mutant 437 | -10/Materials | Discovered new exit (range 4) 587 | -10/Materials | Discovered new exit (range 14) 680 | -10/Materials | Reached level 2 738 | -10/Materials | Upgraded with Weapon slot (x2) 746 | -10/Materials | Discovered new exit (range 15) 861 | -10/Materials | Discovered new exit (range 8) 1197 | -10/Materials | Build established: Gunner 1249 | -10/Materials | Identified exit to Mines 1337 | -10/Materials | Entered Mines 1338 | -10/Mines | Learned location of Storage (-8) 1339 | -10/Mines | Reached level 3 1353 | -10/Mines | Learned location of 1 exit from Materials 1357 | -10/Mines | Discovered new exit (range 9) 1702 | -10/Mines | Crushed by falling debris 1702 | -10/Mines | Core integrity fell below 50% 1719 | -10/Mines | Crushed by falling debris 1719 | -10/Mines | Smashed by cave-in Last Messages --------------- 01541_ R-06 Scavenger collects Lgt. Ion Engine. 01542_ Acquired Com. Wheel. 01544_ K-01 Serf collects debris. 01544_ R-06 Scavenger collects Hover Unit. 01549_ K-01 Serf collects debris. 01551_ Acquired 24 matter. 01552_ R-06 Scavenger collects Lgt. Ion Engine. 01556_ K-01 Serf collects debris. 01580_ System corrupted: Heat flow error (+235). 01599_ WCHE9ZCT1N5X&63D/SF JX 01629_ System corrupted: Energy discharge (-97). 01629_ K-01 Serf collects debris. 01702_ The unstable cave ceiling collapses. 01702_ Crushed by falling debris. 01710_ XF 9CF&0IZYC:H<0UJC0G#51CYWMTJ2 01718_ The unstable cave ceiling collapses. 01719_ Crushed by falling debris. 01719_ Com. Wheel destroyed. 01719_ System corrupted by crushing effect (+1). Map ----- +----------------------------------------------------+ | | | ????????????????????????????? | | ????????????????????????????? | | ????????????????????????????? | | ????????????????????????????? | | ????????????????????????????? | | ????????????????????????????? | | ???????????????####??#######? | | ??????????????## #### ## | | ??????????????# ## # | | ??????????????# # | | ??????????????# # | | ??????????????## ##### # | | ??????????????## ##???## # | | ????????????### #?????# | | ??????????### ##?????## | | ????###??## #???????## | | ???## ##?# #????????## | | ??#### ### #?????????? | | ??## ##"# ##?????????? | | ??# ## ## ##?????????? | | ??# ## #### ##????????? | | ??# ## #??# ##???????? | | ??# ### #??# #####???? | | ??# #### #### #???? | | ??# @#?# ## ## ####? | | ??####?# ### #? | | ??????## ## #? | | ??????# ###### ## | | ?????# ##????#### | | ?????# #######????????# | | ?????## ##??????????????#### | | ??????###???????????????????# | | ????????????????????????????# | | ????????????????????????????? | | ????????????????????????????? | | ????????????????????????????? | | ????????????????????????????? | | ????????????????????????????? | | ????????????????????????????? | | ????????????????????????????? | | ????????????????????????????? | | ????????????????????????????? | | ????????????????????????????? | | ????????????????????????????? | | ????????????????????????????? | | ????????????????????????????? | | ????????????????????????????? | | ????????????????????????????? | | ????????????????????????????? | +----------------------------------------------------+ Best States ------------- Heat Dissipation 37 Energy Generation 10 Energy Capacity 250 Matter Stores 300 Matter Capacity 300 Sight Range 16 Robot Scan Range 8 Terrain Scan Density 10 ECM Strength 1 Additional Mass Support 6 Evasion (%) 62 Item Schematics ----------------- None Robot Schematics ------------------ None Fabricated ------------ Nothing Alien Tech Used ----------------- None Achievements -------------- Quantum Hacking Challenges ------------ None RPGLIKE | -11 -10 -10 --------- Run | Scr Mat Min Levels Raised 2 | . 1 1 XP Earned 7060 | 3000 2985 1075 XP Spent 5920 | 3000 1300 1620 Upgrades 15 | 8 2 5 Propulsion Slot 3 | 3 . . Weapon Slot 2 | . 2 . Heat Dissipation 2 | . . 2 Inventory Capacity 1 | 1 . . Sensor Range 4 | 4 . . Ranged Accuracy 3 | . . 3 Protomatter Created 272 | . 272 . Integrity Restored 580 | . 580 . Core 559 | . 559 . Parts 21 | . 21 . Protomatter Decayed 78 | . 78 . Game ------ Seed TiamatCentriumStreamer Manual? 0 Play Time 00:24:56 Cumulative 25.9 hours Start 2019.12.21 @ 22:16:02 End 2019.12.21 @ 22:39:02 Sessions 1 Manual Loads 0 Difficulty Rogue Special Mode Winter2019/RPGLIKE Game No. 23 Rogue 13 Adventurer 0 Explorer 10 Win Type - Total 0 Types 0/0/0/0/0/0/0 Lore% 22 Gallery% 28 Achievement% 29 Wizard Run 0 Options --------- ASCII 0 Keyboard 0 Movement Mouse Keybinds 0 Fullscreen 2 Font 24/Proggy Map View 76x50 Tactical HUD 1 Map Filters NONE Filters NONE Steam 1 RUN: b59ad292-35da-4ea7-ac10-424ec4d711d5